bitfinex/quotes_SOLUSD_20230113
["timestamp","ask_amount","ask_price","bid_price","bid_amount"]
[1673613556437,20.0,16.618,16.603,45.18]
[1673613556651,46.61765283,16.627,16.603,45.18]
[1673613556652,45.11,16.627,16.604,20.0]
[1673613556860,45.11,16.629,16.606,10.0]
[1673613557079,45.11,16.629,16.607,45.17]
[1673613557297,20.0,16.628,16.607,85.22069058]
[1673613557507,20.0,16.628,16.608,40.05069058]
[1673613557721,20.0,16.628,16.61,10.0]
[1673613557944,20.0,16.629,16.611,153.6886]
[1673613558783,20.0,16.629,16.612,10.0]
[1673613558995,16.39,16.63,16.613,45.15]
[1673613559185,16.39,16.63,16.614,20.0]
[1673613559390,16.39,16.63,16.615,45.14]
[1673613559616,108.2852,16.632,16.616,20.0]
[1673613559824,108.2852,16.632,16.617,55.14]
[1673613560032,108.2852,16.632,16.618,108.5286]
[1673613560241,108.2852,16.632,16.619,45.13]
[1673613560790,45.08,16.638,16.62,10.0]
[1673613561101,20.0,16.637,16.621,45.13]
[1673613561310,45.09,16.636,16.621,45.13]
[1673613561519,20.0,16.635,16.621,45.13]
[1673613562044,17.0,16.634,16.62,45.13]
[1673613563088,62.09,16.634,16.619,45.13]
[1673613563721,17.0,16.634,16.619,45.13]
[1673613564440,16.45,16.63,16.615,45.14]
[1673613564650,16.45,16.63,16.614,269.1639]
[1673613564651,82.11,16.629,16.614,269.1639]
[1673613565911,82.11,16.629,16.615,10.0]
[1673613566119,20.0,16.629,16.616,45.14]
[1673613567607,20.0,16.629,16.617,10.0]
[1673613569093,20.0,16.629,16.616,45.14]
[1673613569303,20.0,16.629,16.614,224.0139]
[1673613569304,17.0,16.628,16.614,224.0139]
[1673613569492,20.0,16.627,16.614,224.0139]
[1673613569702,17.0,16.626,16.614,224.0139]
[1673613569908,20.0,16.625,16.614,224.0139]
[1673613570338,20.0,16.625,16.615,45.14]
[1673613570560,20.0,16.628,16.615,45.14]
[1673613570875,17.0,16.627,16.614,224.0139]
[1673613571083,20.0,16.626,16.614,224.0139]
[1673613574459,17.0,16.625,16.614,224.0139]
[1673613574761,20.0,16.624,16.614,224.0139]
[1673613577488,20.0,16.629,16.616,10.0]
[1673613577695,20.0,16.629,16.617,45.14]
[1673613578655,20.0,16.629,16.618,10.0]
[1673613578865,20.0,16.629,16.619,45.13]
[1673613579068,20.0,16.629,16.618,10.0]
[1673613581398,20.0,16.629,16.617,45.14]
[1673613581922,17.0,16.628,16.616,45.14]
[1673613582122,20.0,16.627,16.615,45.14]
[1673613582332,17.0,16.626,16.614,224.0139]
[1673613582652,20.0,16.625,16.614,112.7517]
[1673613582867,17.0,16.624,16.614,112.7517]
[1673613583060,45.12,16.623,16.614,112.7517]
[1673613583581,17.0,16.624,16.614,112.7517]
[1673613585683,20.0,16.625,16.614,112.7517]
[1673613585893,20.0,16.628,16.614,112.7517]
[1673613586118,62.11,16.627,16.614,112.7517]
[1673613586318,20.0,16.626,16.614,112.7517]
[1673613586525,62.12,16.625,16.614,112.7517]
[1673613586736,20.0,16.624,16.614,112.7517]
[1673613589696,20.0,16.628,16.614,112.7517]
[1673613589914,62.11,16.627,16.614,112.7517]
[1673613590127,20.0,16.626,16.614,112.7517]
[1673613592438,17.0,16.625,16.614,112.7517]
[1673613592624,20.0,16.624,16.614,112.7517]
[1673613592833,17.0,16.623,16.614,112.7517]
[1673613601050,20.0,16.624,16.614,112.7517]
[1673613601368,20.0,16.628,16.614,112.7517]
[1673613601580,45.11,16.627,16.614,112.7517]
[1673613601788,20.0,16.626,16.614,112.7517]
[1673613602187,20.0,16.628,16.614,112.7517]
[1673613602402,62.11,16.627,16.614,112.7517]
[1673613602604,20.0,16.626,16.614,112.7517]
[1673613602818,17.0,16.625,16.614,112.7517]
[1673613603240,20.0,16.624,16.614,112.7517]
[1673613604613,20.0,16.624,16.615,45.14]
[1673613604824,39.87109658,16.629,16.615,45.14]
[1673613605033,20.0,16.629,16.615,45.14]
[1673613605231,20.0,16.629,16.616,10.0]
[1673613605439,20.0,16.629,16.615,45.14]
[1673613605653,65.11,16.629,16.615,45.14]
[1673613606093,20.0,16.629,16.615,45.14]
[1673613606422,17.0,16.628,16.614,112.7517]
[1673613606616,20.0,16.627,16.615,45.14]
[1673613606939,17.0,16.626,16.615,45.14]
[1673613607254,20.0,16.625,16.615,45.14]
[1673613610923,17.0,16.624,16.614,112.7517]
[1673613615328,17.0,16.624,16.612,45.15]
[1673613615538,17.0,16.624,16.609,55.16]
[1673613615752,62.12,16.624,16.609,55.16]
[1673613615963,17.0,16.624,16.609,55.16]
[1673613620819,20.0,16.625,16.609,55.16]
[1673613621027,17.0,16.624,16.609,55.16]
[1673613624283,45.11,16.627,16.609,55.16]
[1673613624599,20.0,16.626,16.609,55.16]
[1673613625103,20.0,16.628,16.609,55.16]
[1673613625315,45.11,16.627,16.609,55.16]
[1673613625538,20.0,16.626,16.609,55.16]
[1673613626172,17.0,16.625,16.609,55.16]
[1673613626489,65.12,16.624,16.609,55.16]
[1673613626697,17.0,16.623,16.609,10.0]
[1673613627643,12.35,16.62,16.608,45.16]
[1673613627842,37.0,16.619,16.607,117.1161]
[1673613629206,82.13,16.619,16.607,117.1161]
[1673613631630,82.13,16.619,16.607,116.99727046]
[1673613635534,82.13,16.619,16.604,45.17]
[1673613635720,82.13,16.619,16.603,45.18]
[1673613635925,82.13,16.619,16.599,10.0]
[1673613636132,82.13,16.619,16.6,45.19]
[1673613636359,12.35,16.61,16.599,10.0]
[1673613636662,17.0,16.609,16.597,396.6]
[1673613636884,12.35,16.61,16.599,10.0]
[1673613638549,12.35,16.61,16.6,45.19]
[1673613638768,17.0,16.609,16.599,45.19]
[1673613638980,17.0,16.609,16.598,55.19]
[1673613639297,12.35,16.61,16.598,55.19]
[1673613639917,17.0,16.609,16.598,55.19]
[1673613640454,12.35,16.61,16.598,55.19]
[1673613641703,17.0,16.609,16.598,55.19]
[1673613641911,12.35,16.61,16.599,10.0]
[1673613642122,12.35,16.61,16.6,45.19]
[1673613642548,12.35,16.61,16.601,10.0]
[1673613642760,12.35,16.61,16.602,45.18]
[1673613643198,12.35,16.61,16.603,10.0]
[1673613643415,65.13,16.619,16.603,10.0]
[1673613643625,17.0,16.618,16.603,10.0]
[1673613643938,65.14,16.617,16.603,10.0]
[1673613644129,45.14,16.618,16.603,10.0]
[1673613644340,20.0,16.617,16.603,10.0]
[1673613644549,45.14,16.616,16.603,10.0]
[1673613644760,20.0,16.615,16.603,10.0]
[1673613645190,20.0,16.618,16.603,10.0]
[1673613645407,62.14,16.617,16.602,45.18]
[1673613645619,20.0,16.616,16.601,10.0]
[1673613645808,62.14,16.615,16.601,10.0]
[1673613646020,20.0,16.614,16.601,10.0]
[1673613646228,17.0,16.613,16.601,10.0]
[1673613646989,12.35,16.61,16.6,10.0]
[1673613647197,20.0,16.609,16.596,396.6]
[1673613647525,62.16,16.608,16.591,161.6364]
[1673613647829,20.0,16.607,16.591,161.6364]
[1673613648015,17.0,16.606,16.591,161.6364]
[1673613648226,20.0,16.605,16.592,10.0]
[1673613648551,17.0,16.604,16.593,45.2]
[1673613648758,17.0,16.604,16.592,55.21]
[1673613648959,17.0,16.604,16.592,45.21]
[1673613650540,45.18,16.603,16.591,116.4264]
[1673613650754,17.0,16.602,16.591,116.4264]
[1673613651384,17.0,16.603,16.591,116.4264]
[1673613651589,17.0,16.603,16.591,126.4264]
[1673613653061,17.0,16.603,16.591,171.6364]
[1673613653272,17.0,16.604,16.591,171.6364]
[1673613653713,17.0,16.604,16.592,10.0]
[1673613654022,17.0,16.604,16.591,45.21]
[1673613654237,12.35,16.6,16.588,396.6]
[1673613654446,17.0,16.599,16.589,45.22]
[1673613654660,17.0,16.599,16.584,10.0]
[1673613654876,17.0,16.599,16.585,65.23]
[1673613655061,17.0,16.599,16.586,10.0]
[1673613655272,17.0,16.599,16.588,10.0]
[1673613656886,17.0,16.599,16.59,10.0]
[1673613660102,12.35,16.6,16.59,10.0]
[1673613660309,45.17,16.604,16.59,10.0]
[1673613660528,17.0,16.603,16.59,10.0]
[1673613660740,17.0,16.604,16.59,10.0]
[1673613661574,62.17,16.604,16.591,45.21]
[1673613661783,17.0,16.604,16.59,10.0]
[1673613662248,130.1575,16.605,16.59,10.0]
[1673613662541,130.1575,16.605,16.592,10.0]
[1673613663696,17.0,16.604,16.592,10.0]
[1673613669596,130.1575,16.605,16.592,10.0]
[1673613669781,130.1575,16.605,16.592,55.21]
[1673613670853,17.0,16.604,16.592,55.21]
[1673613671050,45.18,16.603,16.592,10.0]
[1673613671252,17.0,16.602,16.59,10.0]
[1673613671579,17.0,16.602,16.588,126.2222]
[1673613671580,45.18,16.601,16.588,126.2222]
[1673613671796,17.0,16.6,16.588,126.2222]
[1673613672422,20.0,16.599,16.588,126.2222]
[1673613672741,20.0,16.599,16.585,45.23]
[1673613672742,17.0,16.598,16.585,45.23]
[1673613672958,20.0,16.597,16.585,45.23]
[1673613673266,17.0,16.596,16.585,45.23]
[1673613673496,20.0,16.595,16.585,45.23]
[1673613674216,12.3,16.6,16.585,45.23]
[1673613674430,82.19,16.599,16.585,45.23]
[1673613676522,82.19,16.599,16.583,155.844]
[1673613679655,62.19,16.599,16.583,155.844]
[1673613679885,45.17,16.604,16.586,10.0]
[1673613680093,17.0,16.603,16.587,161.7519]
[1673613680438,17.0,16.603,16.588,10.0]
[1673613680619,17.0,16.603,16.59,10.0]
[1673613681791,17.0,16.603,16.589,156.1039]
[1673613682007,45.18,16.602,16.589,110.8839]
[1673613682215,17.0,16.603,16.589,110.8839]
[1673613682216,17.0,16.601,16.589,110.8839]
[1673613682430,17.0,16.603,16.589,110.8839]
[1673613685371,17.0,16.603,16.589,100.8839]
[1673613686216,17.0,16.603,16.59,10.0]
[1673613686418,17.0,16.603,16.589,100.8839]
[1673613686617,12.29,16.6,16.589,100.8839]
[1673613686828,17.0,16.599,16.589,100.8839]
[1673613690300,17.0,16.599,16.587,161.7519]
[1673613690513,17.0,16.599,16.587,116.5319]
[1673613694818,17.0,16.599,16.586,45.22]
[1673613695028,65.19,16.598,16.584,45.23]
[1673613695354,17.0,16.597,16.584,45.23]
[1673613695765,20.0,16.596,16.584,45.23]
[1673613695975,17.0,16.595,16.584,45.23]
[1673613696180,20.0,16.594,16.584,45.23]
[1673613696393,17.0,16.593,16.583,119.6347]
[1673613697984,20.0,16.594,16.583,119.6347]
[1673613698305,20.0,16.598,16.585,10.0]
[1673613698498,20.0,16.599,16.586,45.22]
[1673613699355,17.0,16.598,16.586,45.22]
[1673613699545,20.0,16.597,16.586,45.22]
[1673613699750,45.18,16.603,16.587,10.0]
[1673613699965,45.18,16.603,16.588,45.22]
[1673613700396,94.82236755,16.604,16.588,45.22]
[1673613700609,12.35,16.6,16.588,45.22]
[1673613702397,17.0,16.599,16.588,45.22]
[1673613705238,12.35,16.6,16.588,45.22]
[1673613705454,12.35,16.6,16.588,55.22]
[1673613706603,12.35,16.6,16.588,45.22]
[1673613706817,17.0,16.599,16.588,45.22]
[1673613707532,20.0,16.598,16.585,45.23]
[1673613707747,20.0,16.598,16.583,119.6347]
[1673613707748,17.0,16.597,16.584,45.23]
[1673613707957,20.0,16.596,16.583,164.8647]
[1673613708174,17.0,16.595,16.583,164.8647]
[1673613708375,20.0,16.594,16.583,164.8647]
[1673613708584,17.0,16.593,16.583,164.8647]
[1673613708808,20.0,16.596,16.583,164.8647]
[1673613709019,17.0,16.595,16.584,10.0]
[1673613709228,20.0,16.594,16.585,45.23]
[1673613710596,20.0,16.598,16.585,45.23]
[1673613710790,17.0,16.597,16.585,45.23]
[1673613711000,20.0,16.596,16.585,45.23]
[1673613711736,20.0,16.597,16.585,45.23]
[1673613711953,20.0,16.597,16.586,10.0]
[1673613712161,12.24,16.6,16.586,10.0]
[1673613712162,20.0,16.599,16.587,45.22]
[1673613712690,20.0,16.599,16.586,10.0]
[1673613712887,20.0,16.599,16.585,45.23]
[1673613713429,17.0,16.598,16.585,45.23]
[1673613713645,17.0,16.598,16.584,45.23]
[1673613713847,20.0,16.597,16.584,45.23]
[1673613714045,17.0,16.596,16.584,45.23]
[1673613714255,20.0,16.595,16.584,45.23]
[1673613714476,17.0,16.594,16.584,45.23]
[1673613717246,20.0,16.597,16.584,45.23]
[1673613717550,17.0,16.596,16.584,45.23]
[1673613717759,20.0,16.595,16.584,45.23]
[1673613718276,65.19,16.599,16.584,45.23]
[1673613718492,17.0,16.598,16.583,119.6347]
[1673613718813,65.19,16.597,16.583,119.6347]
[1673613719024,17.0,16.596,16.583,119.6347]
[1673613719246,20.0,16.595,16.583,119.6347]
[1673613719539,17.0,16.594,16.582,45.23]
[1673613719864,17.0,16.594,16.581,45.24]
[1673613720912,17.0,16.594,16.581,55.24]
[1673613724695,20.0,16.595,16.581,55.24]
[1673613724922,65.19,16.599,16.582,10.0]
[1673613725117,65.19,16.599,16.583,45.23]
[1673613725867,17.0,16.598,16.583,45.23]
[1673613726187,20.0,16.597,16.583,45.23]
[1673613726385,17.0,16.596,16.583,45.23]
[1673613726714,20.0,16.595,16.583,45.23]
[1673613726900,17.0,16.594,16.583,45.23]
[1673613729427,17.0,16.594,16.582,45.23]
[1673613731735,17.0,16.594,16.581,45.24]
[1673613734172,20.0,16.595,16.581,45.24]
[1673613734381,20.0,16.598,16.581,45.24]
[1673613734789,20.0,16.598,16.582,10.0]
[1673613734993,20.0,16.598,16.583,45.23]
[1673613735834,17.0,16.597,16.583,45.23]
[1673613736051,20.0,16.596,16.583,45.23]
[1673613736358,17.0,16.595,16.583,45.23]
[1673613736567,20.0,16.594,16.583,45.23]
[1673613739110,20.0,16.594,16.581,45.24]
[1673613739320,17.0,16.593,16.581,45.24]
[1673613739547,20.0,16.594,16.581,45.24]
[1673613739854,17.0,16.593,16.581,45.24]
[1673613741858,17.0,16.593,16.58,45.24]
[1673613743608,17.0,16.593,16.58,55.24]
[1673613745837,20.0,16.594,16.581,10.0]
[1673613746042,20.0,16.598,16.582,45.23]
[1673613746876,20.0,16.598,16.581,45.24]
[1673613747942,17.0,16.597,16.581,45.24]
[1673613748130,20.0,16.596,16.581,45.24]
[1673613748340,17.0,16.595,16.581,45.24]
[1673613748866,20.0,16.594,16.581,45.24]
[1673613749179,17.0,16.593,16.581,45.24]
[1673613753836,17.0,16.593,16.58,55.24]
[1673613754765,17.0,16.593,16.58,45.24]
[1673613755619,17.0,16.593,16.581,10.0]
[1673613755815,20.0,16.594,16.582,45.23]
[1673613756021,20.0,16.598,16.582,45.23]
[1673613756234,45.19,16.597,16.582,45.23]
[1673613756444,20.0,16.596,16.582,45.23]
[1673613757074,17.0,16.595,16.582,45.23]
[1673613757284,20.0,16.594,16.582,45.23]
[1673613757490,17.0,16.593,16.582,45.23]
[1673613759712,17.0,16.593,16.581,55.24]
[1673613762343,17.0,16.593,16.581,45.24]
[1673613762551,17.0,16.593,16.579,396.6]
[1673613762736,62.2,16.593,16.578,119.2117]
[1673613762949,62.2,16.593,16.579,10.0]
[1673613763175,17.0,16.593,16.579,10.0]
[1673613763378,17.0,16.593,16.58,45.24]
[1673613764424,17.0,16.593,16.581,10.0]
[1673613764635,17.0,16.593,16.582,45.23]
[1673613766957,17.0,16.593,16.581,10.0]
[1673613767166,17.0,16.593,16.582,45.23]
[1673613768232,62.2,16.593,16.579,55.24]
[1673613769382,62.2,16.593,16.579,45.24]
[1673613770336,62.2,16.593,16.579,43.74]
[1673613770520,62.2,16.593,16.578,174.4617]
[1673613771492,45.2,16.593,16.579,10.0]
[1673613771799,20.0,16.594,16.578,174.4617]
[1673613771995,45.2,16.593,16.578,174.4617]
[1673613772949,17.0,16.592,16.578,174.4617]
[1673613773150,17.0,16.592,16.578,164.4617]
[1673613774119,45.2,16.593,16.578,164.4617]
[1673613774328,20.0,16.594,16.579,10.0]
[1673613774518,20.0,16.595,16.58,45.24]
[1673613774727,20.0,16.595,16.581,10.0]
[1673613774953,20.0,16.595,16.582,45.23]
[1673613775477,20.0,16.595,16.583,10.0]
[1673613775680,20.0,16.595,16.584,45.23]
[1673613776211,20.0,16.595,16.582,45.23]
[1673613776627,17.0,16.594,16.582,45.23]
[1673613777456,17.0,16.594,16.581,45.24]
[1673613777675,17.0,16.594,16.58,45.24]
[1673613778396,17.0,16.594,16.579,45.24]
[1673613780083,12.35,16.59,16.575,45.25]
[1673613780294,65.22,16.589,16.574,45.26]
[1673613780527,82.22,16.589,16.574,45.26]
[1673613781674,82.22,16.589,16.573,43.0387611]
[1673613792394,131.87236755,16.589,16.573,43.0387611]
[1673613792816,12.3,16.58,16.573,43.0387611]
[1673613793031,82.24,16.579,16.573,43.0387611]
[1673613793867,82.24,16.579,16.573,36.2023611]
[1673613794077,131.89236755,16.579,16.573,36.2023611]
[1673613798387,1.18249214,16.578,16.573,36.2023611]
[1673613798602,45.25,16.577,16.573,36.2023611]
[1673613798935,37.0,16.576,16.573,36.2023611]
[1673613799149,45.25,16.575,16.573,36.2023611]
[1673613799337,37.0,16.574,16.573,36.2023611]
[1673613799548,82.26,16.574,16.573,36.2023611]
[1673613799760,37.0,16.574,16.573,36.2023611]
[1673613801153,20.0,16.574,16.573,36.2023611]
[1673613803659,12.47,16.58,16.573,36.2023611]
[1673613803877,45.22,16.586,16.573,36.2023611]
[1673613804088,20.0,16.585,16.573,36.2023611]
[1673613804939,45.23,16.584,16.573,36.2023611]
[1673613806842,17.0,16.583,16.573,36.2023611]
[1673613808314,12.35,16.58,16.573,36.2023611]
[1673613808520,17.0,16.579,16.573,36.2023611]
[1673613811475,62.24,16.579,16.573,36.2023611]
[1673613811679,17.0,16.579,16.573,36.2023611]
[1673613811988,12.35,16.58,16.573,36.2023611]
[1673613812207,45.23,16.584,16.573,36.2023611]
[1673613812605,45.23,16.584,16.573,46.2023611]
[1673613812944,45.23,16.584,16.574,10.0]
[1673613813365,17.0,16.583,16.574,10.0]
[1673613813675,45.23,16.584,16.574,10.0]
[1673613813888,20.0,16.585,16.574,10.0]
[1673613815024,45.23,16.584,16.574,10.0]
[1673613815233,20.0,16.585,16.574,10.0]
[1673613815672,17.0,16.584,16.574,10.0]
[1673613816202,62.23,16.584,16.574,10.0]
[1673613818401,20.0,16.585,16.574,10.0]
[1673613818810,20.0,16.584,16.574,10.0]
[1673613819136,20.0,16.589,16.574,10.0]
[1673613819355,45.22,16.588,16.574,55.26]
[1673613819562,20.0,16.587,16.574,10.0]
[1673613819899,17.0,16.586,16.574,10.0]
[1673613820085,20.0,16.585,16.574,10.0]
[1673613820486,17.0,16.584,16.574,10.0]
[1673613821014,20.0,16.585,16.574,10.0]
[1673613821218,20.0,16.588,16.574,10.0]
[1673613821426,62.22,16.587,16.574,10.0]
[1673613821750,17.0,16.587,16.576,10.0]
[1673613821959,17.0,16.587,16.577,45.25]
[1673613822499,12.36,16.59,16.577,45.25]
[1673613822817,45.2,16.594,16.578,10.0]
[1673613823032,45.2,16.595,16.579,45.24]
[1673613823339,20.0,16.594,16.579,45.24]
[1673613823531,20.0,16.594,16.58,10.0]
[1673613823745,20.0,16.594,16.581,45.24]
[1673613824070,20.0,16.595,16.581,45.24]
[1673613824592,20.0,16.595,16.582,10.0]
[1673613826472,17.0,16.594,16.582,10.0]
[1673613827204,17.0,16.594,16.581,45.24]
[1673613828493,17.0,16.594,16.58,67.5]
[1673613829517,65.2,16.595,16.58,67.5]
[1673613829731,20.0,16.595,16.58,67.5]
[1673613830060,20.0,16.595,16.58,57.5]
[1673613830274,65.2,16.595,16.58,45.24]
[1673613830479,65.2,16.595,16.579,45.24]
[1673613830678,65.2,16.595,16.578,226.8039]
[1673613830894,17.0,16.594,16.578,226.8039]
[1673613831102,45.2,16.593,16.578,226.8039]
[1673613831322,17.0,16.592,16.578,226.8039]
[1673613831535,45.21,16.591,16.579,45.24]
[1673613831740,17.0,16.59,16.578,226.8039]
[1673613831942,17.0,16.592,16.578,226.8039]
[1673613832151,17.0,16.593,16.578,226.8039]
[1673613832372,45.21,16.592,16.578,226.8039]
[1673613832588,17.0,16.591,16.578,226.8039]
[1673613836254,17.0,16.591,16.579,45.24]
[1673613837004,17.0,16.591,16.578,226.8039]
[1673613838581,17.0,16.591,16.579,45.24]
[1673613838803,17.0,16.591,16.578,226.8039]
[1673613839839,127.16,16.59,16.578,115.4664]
[1673613840050,27.0,16.589,16.573,36.2023611]
[1673613840263,65.22,16.588,16.573,36.2023611]
[1673613840578,17.0,16.587,16.573,36.2023611]
[1673613840789,20.0,16.586,16.573,36.2023611]
[1673613840975,17.0,16.585,16.573,36.2023611]
[1673613841184,20.0,16.584,16.573,36.2023611]
[1673613841408,17.0,16.583,16.573,36.2023611]
[1673613843199,12.35,16.58,16.573,36.2023611]
[1673613843516,17.0,16.579,16.573,36.2023611]
[1673613845296,12.35,16.58,16.573,36.2023611]
[1673613846767,17.0,16.579,16.573,36.2023611]
[1673613850546,62.24,16.579,16.573,36.2023611]
[1673613850976,17.0,16.579,16.573,36.2023611]
[1673613851191,20.0,16.578,16.573,36.2023611]
[1673613851397,17.0,16.577,16.573,36.2023611]
[1673613851707,20.0,16.576,16.573,36.2023611]
[1673613852031,17.0,16.575,16.573,36.2023611]
[1673613852242,20.0,16.574,16.573,36.2023611]
[1673613852556,37.0,16.574,16.573,36.2023611]
[1673613854549,20.0,16.574,16.573,36.2023611]
[1673613855395,12.46,16.58,16.573,36.2023611]
[1673613856868,17.0,16.579,16.573,36.2023611]
[1673613858233,12.46,16.58,16.573,36.2023611]
[1673613858448,45.23,16.585,16.573,36.2023611]
[1673613858870,20.0,16.584,16.574,10.0]
[1673613859064,20.0,16.584,16.574,55.26]
[1673613859490,20.0,16.589,16.574,55.26]
[1673613859701,20.0,16.589,16.574,163.4536]
[1673613861915,20.0,16.589,16.575,10.0]
[1673613862112,20.0,16.589,16.576,45.25]
[1673613862324,20.0,16.589,16.577,10.0]
[1673613863081,17.0,16.588,16.577,10.0]
[1673613863282,17.0,16.588,16.579,10.0]
[1673613863501,45.2,16.595,16.58,45.24]
[1673613863709,37.0,16.594,16.58,45.24]
[1673613864227,37.0,16.594,16.581,10.0]
[1673613864545,20.0,16.594,16.582,45.23]
[1673613864750,20.0,16.595,16.582,45.23]
[1673613865073,45.19,16.599,16.582,156.8277]
[1673613865391,180.7,16.609,16.582,156.8277]
[1673613865392,45.17,16.604,16.584,10.0]
[1673613865601,45.17,16.604,16.585,65.23]
[1673613866106,45.17,16.604,16.586,10.0]
[1673613866317,45.16,16.608,16.587,45.22]
[1673613866532,45.16,16.608,16.587,162.0]
[1673613866533,20.0,16.604,16.587,162.0]
[1673613866754,12.35,16.6,16.587,45.22]
[1673613866965,12.35,16.6,16.585,45.23]
[1673613867156,65.19,16.599,16.585,45.23]
[1673613867371,65.19,16.599,16.583,45.23]
[1673613867584,17.0,16.598,16.583,45.23]
[1673613867795,20.0,16.597,16.583,45.23]
[1673613868121,45.2,16.596,16.58,45.24]
[1673613868438,37.0,16.595,16.58,45.24]
[1673613868649,45.2,16.594,16.579,45.24]
[1673613868865,17.0,16.593,16.579,45.24]
[1673613869502,17.0,16.594,16.579,45.24]
[1673613870107,17.0,16.594,16.583,45.23]
[1673613870654,20.0,16.595,16.583,45.23]
[1673613870864,20.0,16.598,16.583,45.23]
[1673613871076,45.19,16.597,16.583,45.23]
[1673613871291,20.0,16.596,16.583,45.23]
[1673613871692,20.0,16.598,16.583,45.23]
[1673613872321,17.0,16.597,16.583,45.23]
[1673613872535,20.0,16.596,16.583,45.23]
[1673613872741,17.0,16.595,16.583,45.23]
[1673613873281,20.0,16.594,16.583,45.23]
[1673613873493,17.0,16.593,16.583,45.23]
[1673613874549,17.0,16.593,16.58,57.56]
[1673613874744,17.0,16.593,16.58,12.32]
[1673613875382,17.0,16.593,16.581,45.24]
[1673613876741,17.0,16.593,16.583,45.23]
[1673613876954,20.0,16.594,16.583,45.23]
[1673613877267,20.0,16.598,16.583,45.23]
[1673613878325,17.0,16.597,16.583,45.23]
[1673613878751,20.0,16.596,16.583,45.23]
[1673613878965,17.0,16.595,16.583,45.23]
[1673613879486,20.0,16.594,16.583,45.23]
[1673613880854,17.0,16.593,16.583,45.23]
[1673613881278,17.0,16.593,16.579,45.24]
[1673613881477,62.2,16.593,16.579,45.24]
[1673613882109,17.0,16.593,16.579,45.24]
[1673613883475,62.2,16.593,16.579,45.24]